bitfinex-derivatives/quotes_BTCF0:USTF0_20250822
["timestamp","ask_amount","ask_price","bid_price","bid_amount"]
[1755839127781,0.08097,113070.0,113060.0,0.59488519]
[1755839127966,0.11746,113070.0,113060.0,0.59488519]
[1755839128274,0.11746,113070.0,113060.0,0.50641659]
[1755839133073,0.08097,113070.0,113060.0,0.50641659]
[1755839133268,0.09454,113070.0,113060.0,0.50641659]
[1755839133478,0.11746,113070.0,113060.0,0.50641659]
[1755839135584,0.02184,113070.0,113060.0,0.50641659]
[1755839136078,0.03127,113070.0,113060.0,0.50641659]
[1755839136280,0.06498,113070.0,113060.0,0.50641659]
[1755839136481,0.08272798,113070.0,113060.0,0.50641659]
[1755839136876,0.08272798,113070.0,113060.0,0.13866282]
[1755839137077,0.49600798,113070.0,113060.0,0.13866282]
[1755839137577,0.13520798,113070.0,113060.0,0.13866282]
[1755839137973,0.75754717,113070.0,113060.0,0.11903]
[1755839143985,0.47826,113070.0,113060.0,0.11903]
[1755839147294,0.75754717,113070.0,113060.0,0.00945]
[1755839147687,0.777368,113070.0,113060.0,0.00945]
[1755839147890,0.777368,113070.0,113060.0,0.03144]
[1755839148195,0.49808083,113070.0,113060.0,0.03144]
[1755839148403,0.777368,113070.0,113060.0,0.03144]
[1755839148694,0.777368,113070.0,113050.0,0.08870565]
[1755839148695,0.12004,113060.0,113050.0,0.08870565]
[1755839148995,0.76012717,113060.0,113050.0,0.07483565]
[1755839149591,0.76012717,113060.0,113050.0,0.10796565]
[1755839149993,0.76012717,113060.0,113050.0,0.07483565]
[1755839150193,0.76012717,113060.0,113050.0,0.05179565]
[1755839150894,0.12004,113050.0,113040.0,0.93124]
[1755839151097,0.48084,113050.0,113040.0,0.08391]
[1755839151294,0.76012717,113050.0,113040.0,0.11704]
[1755839151599,0.48084,113050.0,113040.0,0.11704]
[1755839152291,0.48084,113050.0,113040.0,0.11804]
[1755839152492,0.48084,113050.0,113040.0,0.11904]
[1755839154598,0.76012717,113050.0,113040.0,0.11904]
[1755839158395,0.48084,113050.0,113040.0,0.11904]
[1755839163398,0.48084,113050.0,113040.0,0.39832717]
[1755839164296,0.48084,113050.0,113040.0,0.11904]
[1755839168206,0.48084,113050.0,113040.0,0.39832717]
[1755839176912,0.48084,113050.0,113040.0,0.11904]
[1755839177105,0.48084,113050.0,113040.0,0.39832717]
[1755839178311,0.50061962,113050.0,113040.0,0.39832717]
[1755839179405,0.48084,113050.0,113040.0,0.39832717]
[1755839180210,0.50062971,113050.0,113040.0,0.39832717]
[1755839180407,0.13982971,113050.0,113040.0,0.67761434]
[1755839180609,0.04801,113050.0,113040.0,0.67761434]
[1755839180813,0.04801,113050.0,113040.0,0.39832717]
[1755839181017,0.08008,113050.0,113040.0,0.39832717]
[1755839181315,0.11779,113050.0,113040.0,0.39832717]
[1755839181607,0.38273,113060.0,113050.0,0.11974]
[1755839181812,0.57753472,113080.0,113070.0,0.04905]
[1755839182012,0.57956995,113080.0,113070.0,0.39902717]
[1755839182807,0.55977666,113080.0,113070.0,0.39902717]
[1755839188020,0.55977666,113080.0,113070.0,0.11974]
[1755839188215,0.55977666,113080.0,113070.0,0.39902717]
[1755839189724,0.83906383,113080.0,113070.0,0.11974]
[1755839194223,0.55977666,113080.0,113070.0,0.39902717]
[1755839197921,0.55977666,113080.0,113070.0,0.11974]
[1755839200925,0.48779212,113080.0,113070.0,0.39902717]
[1755839202927,0.48779212,113080.0,113070.0,0.11974]
[1755839203124,0.48779212,113080.0,113070.0,0.39902717]
[1755839203325,0.48779212,113080.0,113070.0,0.11974]
[1755839203629,0.48779212,113080.0,113070.0,0.39902717]
[1755839203927,0.48779212,113080.0,113070.0,0.11974]
[1755839210033,0.48779212,113080.0,113070.0,0.39902717]
[1755839210435,0.50787724,113080.0,113070.0,0.39902717]
[1755839212339,0.50787724,113080.0,113070.0,0.11974]
[1755839212538,0.50787724,113080.0,113070.0,0.39902717]
[1755839214642,0.50787724,113080.0,113070.0,0.11974]
[1755839214843,0.50787724,113080.0,113070.0,0.39902717]
[1755839218344,0.78693424,113080.0,113070.0,0.398797]
[1755839219056,0.50787724,113080.0,113070.0,0.398797]
[1755839219249,0.78693424,113080.0,113070.0,0.398797]
[1755839221649,0.50787724,113080.0,113070.0,0.398797]
[1755839221846,0.77794212,113080.0,113070.0,0.398797]
[1755839222547,0.49888512,113080.0,113070.0,0.398797]
[1755839222945,0.06830512,113080.0,113070.0,1.5799967]
[1755839223142,0.05183512,113080.0,113070.0,1.0218827]
[1755839223349,0.07001,113090.0,113070.0,2.1185191]
[1755839223550,0.13882338,113090.0,113080.0,0.675234]
[1755839224455,0.13882338,113090.0,113080.0,0.39606935]
[1755839224956,0.13882338,113090.0,113080.0,0.41587205]
[1755839225146,0.08567,113090.0,113080.0,0.1369227]
[1755839225352,0.1183,113090.0,113080.0,0.41587205]
[1755839229556,0.49943389,113090.0,113080.0,0.41587205]
[1755839230164,0.4994326,113090.0,113080.0,0.41587205]
[1755839232560,0.4994326,113090.0,113080.0,0.1369227]
[1755839232866,0.4791,113090.0,113080.0,0.37024205]
[1755839233066,0.4791,113090.0,113080.0,0.41587205]
[1755839236066,0.4791,113090.0,113080.0,0.38424205]
[1755839236477,0.4791,113090.0,113080.0,0.41587205]
[1755839240768,0.02219,113090.0,113080.0,0.50432695]
[1755839240965,0.55568898,113100.0,113090.0,0.0958]
[1755839241163,0.57613206,113100.0,113090.0,1.20981935]
[1755839241467,0.21533206,113100.0,113090.0,1.20981935]
[1755839241671,0.18612563,113100.0,113090.0,1.20981935]
[1755839243673,0.19494038,113100.0,113090.0,1.20981935]
[1755839243973,0.18612563,113100.0,113090.0,1.20981935]
[1755839244784,0.18612563,113100.0,113090.0,1.18826935]
[1755839245672,0.16802696,113100.0,113090.0,1.18826935]
[1755839246378,0.20428696,113100.0,113090.0,1.18823299]
[1755839246677,0.20428696,113100.0,113090.0,0.90932]
[1755839246979,0.20428696,113100.0,113090.0,1.18823299]
[1755839248378,0.14945696,113100.0,113090.0,1.15514299]
[1755839252090,0.17010394,113100.0,113090.0,1.15514299]
[1755839252301,0.13384394,113100.0,113090.0,1.15514299]
[1755839252686,0.40583188,113110.0,113090.0,1.61094738]
[1755839252882,0.45214147,113110.0,113100.0,0.62053598]
[1755839253376,0.41588147,113110.0,113100.0,0.62053598]
[1755839253785,0.02064959,113110.0,113100.0,1.06977528]
[1755839253987,0.44817531,113120.0,113100.0,1.20850118]
[1755839254183,0.47793564,113120.0,113110.0,1.15506299]
[1755839254493,0.51705564,113120.0,113110.0,1.1549768]
[1755839254681,0.49640531,113120.0,113110.0,1.1549768]
[1755839255286,0.53073886,113120.0,113110.0,1.1549768]
[1755839256088,0.51009531,113120.0,113110.0,1.1549768]
[1755839257684,0.51883416,113120.0,113110.0,1.1549768]
[1755839258991,0.51883416,113120.0,113110.0,0.87615]
[1755839264491,0.51883416,113120.0,113110.0,1.1549768]
[1755839265994,0.51883416,113120.0,113110.0,0.3415368]
[1755839266196,0.51883416,113120.0,113110.0,0.06271]
[1755839266493,0.51883416,113120.0,113110.0,0.3415368]
[1755839269097,0.53907005,113120.0,113110.0,0.3415368]
[1755839269696,0.51883416,113120.0,113110.0,0.3415368]
[1755839270098,0.53907211,113120.0,113110.0,0.3415368]
[1755839272806,0.51883416,113120.0,113110.0,0.3415368]
[1755839275197,0.51883416,113120.0,113110.0,0.06271]
[1755839275499,0.51883416,113120.0,113110.0,0.3415368]
[1755839276393,0.79769348,113120.0,113110.0,0.34156932]
[1755839278804,0.51883416,113120.0,113110.0,0.34156932]
[1755839279004,0.79769348,113120.0,113110.0,0.34156932]
[1755839280405,0.51883416,113120.0,113110.0,0.34156932]
[1755839280706,0.79769348,113120.0,113110.0,0.34156932]
[1755839282304,0.51883416,113120.0,113110.0,0.34156932]
[1755839282497,0.79769348,113120.0,113110.0,0.34156932]
[1755839283107,0.8181686,113120.0,113110.0,0.34156932]
[1755839284316,0.53930928,113120.0,113110.0,0.34156932]
[1755839284510,0.8181686,113120.0,113110.0,0.34156932]
[1755839284994,0.74901758,113120.0,113110.0,0.34156932]
[1755839285399,0.74027873,113120.0,113110.0,0.34156932]
[1755839285606,0.74027873,113120.0,113110.0,0.43000112]
[1755839285807,0.74027873,113120.0,113110.0,0.34156932]
[1755839286108,0.74926678,113120.0,113110.0,0.34156932]
[1755839286305,0.74027873,113120.0,113110.0,0.34156932]
[1755839287299,0.74027873,113120.0,113110.0,0.06271]
[1755839287599,0.74027873,113120.0,113110.0,0.34156932]
[1755839288502,0.74027873,113120.0,113110.0,0.32697932]
[1755839289702,0.74897856,113120.0,113110.0,0.32697932]
[1755839290006,0.74897856,113120.0,113110.0,0.34056932]
[1755839290806,1.02783788,113120.0,113110.0,0.27885932]
[1755839291513,0.06334,113110.0,113100.0,1.208462]
[1755839291702,0.70299932,113110.0,113100.0,0.34080932]
[1755839292913,0.70299932,113110.0,113100.0,0.34180932]
[1755839293611,0.72347933,113110.0,113100.0,0.01005]
[1755839293817,1.53643933,113110.0,113100.0,0.001]
[1755839294713,1.53643933,113110.0,113100.0,0.01005]
[1755839295109,1.53643933,113110.0,113100.0,0.28890932]
[1755839295309,1.51595932,113110.0,113100.0,0.28890932]
[1755839295607,1.5365347,113110.0,113100.0,0.01005]
[1755839295919,1.5365347,113110.0,113100.0,0.27985932]
[1755839296320,1.5365347,113110.0,113100.0,0.27885932]
[1755839297219,1.47840932,113110.0,113090.0,1.21331989]
[1755839297517,0.4246,113100.0,113090.0,1.21331989]
[1755839297717,0.70345932,113100.0,113090.0,1.17384721]
[1755839299017,0.70345932,113100.0,113090.0,1.17484721]
[1755839299219,0.70345932,113100.0,113090.0,1.17584721]
[1755839299616,0.70345932,113100.0,113090.0,1.17684721]
[1755839299817,0.70345932,113100.0,113090.0,0.89798789]
[1755839300012,0.70345932,113100.0,113090.0,1.17684721]
[1755839305727,0.70345932,113100.0,113090.0,1.17680721]
[1755839306222,0.70345932,113100.0,113090.0,1.17480721]
[1755839306425,0.70345932,113100.0,113090.0,1.17680721]
[1755839307329,0.4246,113100.0,113090.0,1.17680721]
[1755839307521,0.70345932,113100.0,113090.0,1.17580721]
[1755839308425,0.75759932,113100.0,113090.0,1.20747721]
[1755839310024,0.75759932,113100.0,113090.0,1.20847721]
[1755839311024,0.75759932,113100.0,113090.0,1.18847932]
[1755839311428,0.75759932,113100.0,113090.0,1.15480932]
[1755839311719,0.75759932,113100.0,113090.0,1.18747932]
[1755839312725,0.47874,113100.0,113090.0,1.18747932]
[1755839313113,0.75759932,113100.0,113090.0,1.18747932]
[1755839313319,0.47874,113100.0,113090.0,1.18747932]
[1755839313519,0.75759932,113100.0,113090.0,1.18747932]
[1755839315123,0.75759932,113100.0,113090.0,1.18847932]
[1755839315922,0.47874,113100.0,113090.0,1.18847932]
[1755839316632,0.47874,113100.0,113090.0,0.93321]
[1755839316832,0.75759932,113100.0,113090.0,1.21206932]
[1755839317127,0.75759932,113100.0,113090.0,1.21106932]
[1755839319519,0.47874,113100.0,113090.0,1.21106932]
[1755839320921,0.44026,113100.0,113090.0,0.93221]
[1755839321231,0.47874,113100.0,113090.0,1.21106932]
[1755839321421,0.75759932,113100.0,113090.0,1.21106932]
[1755839322930,1.05434846,113100.0,113090.0,0.08666]
[1755839323235,1.07513171,113100.0,113090.0,1.21086932]
[1755839323529,0.79627239,113100.0,113090.0,1.21086932]
[1755839323728,1.07513171,113100.0,113090.0,1.21086932]
[1755839324333,1.07513171,113100.0,113090.0,0.93201]
[1755839324631,1.07513171,113100.0,113090.0,1.21086932]
[1755839324833,0.79627239,113100.0,113090.0,1.21086932]
[1755839325624,1.07513171,113100.0,113090.0,1.21086932]
[1755839326124,1.07513171,113100.0,113090.0,0.93201]
[1755839326326,1.07513171,113100.0,113090.0,1.21086932]
[1755839326726,0.79627239,113100.0,113090.0,1.21086932]
[1755839326928,0.79627239,113100.0,113090.0,0.39818932]
[1755839327830,1.88777171,113100.0,113090.0,0.08666]
[1755839328033,1.88777171,113100.0,113090.0,0.002]
[1755839329632,1.88777171,113100.0,113090.0,0.001]
[1755839329831,1.88777171,113100.0,113080.0,0.36857426]
[1755839330038,0.75477932,113090.0,113080.0,0.41730426]
[1755839330340,0.77556257,113090.0,113080.0,0.41730426]
[1755839330637,0.77556257,113090.0,113080.0,0.10680494]
[1755839330841,0.77556257,113090.0,113080.0,0.13844494]
[1755839331139,0.77556257,113090.0,113080.0,0.14044494]
[1755839332030,0.77556257,113090.0,113080.0,0.10880494]
[1755839332340,0.77556257,113090.0,113080.0,0.002]
[1755839332538,0.77556257,113090.0,113080.0,0.03493]
[1755839332733,0.77556257,113090.0,113080.0,0.0905]
[1755839332940,0.49670325,113090.0,113080.0,0.39925932]
[1755839333242,0.75477932,113090.0,113080.0,0.39925932]
[1755839333728,0.75477932,113090.0,113080.0,0.1204]
[1755839333930,0.75477932,113090.0,113080.0,0.39925932]
[1755839334331,0.75477932,113090.0,113080.0,0.1204]
[1755839334738,0.75477932,113090.0,113080.0,0.1194]
[1755839335936,0.75477932,113090.0,113080.0,0.1184]
[1755839335937,0.47592,113090.0,113080.0,0.1184]
[1755839336139,0.75477932,113090.0,113080.0,0.1184]
[1755839336438,0.11512,113080.0,113070.0,0.07695]
[1755839336638,1.03363864,113080.0,113070.0,0.08676]
[1755839336941,1.84627864,113080.0,113070.0,0.1184]
[1755839337641,1.84627864,113080.0,113070.0,0.1194]
[1755839338138,1.84627864,113080.0,113070.0,0.03393]
[1755839338441,1.84627864,113080.0,113070.0,0.001]
[1755839339143,1.84627864,113080.0,113060.0,0.34852932]
[1755839339347,0.68534932,113070.0,113060.0,0.39725932]
[1755839339643,0.75477932,113070.0,113060.0,0.39725932]
[1755839340039,0.82495165,113070.0,113060.0,0.39725932]
[1755839340242,0.82495165,113070.0,113060.0,0.39825932]
[1755839340544,0.82495165,113070.0,113060.0,0.39925932]
[1755839340845,0.83376016,113070.0,113060.0,0.39925932]
[1755839341045,0.83376016,113070.0,113060.0,0.1204]
[1755839341247,0.83376016,113070.0,113060.0,0.39925932]
[1755839341444,0.83376016,113070.0,113060.0,0.08876]
[1755839341646,0.85132423,113070.0,113060.0,0.1204]
[1755839342347,0.57246491,113070.0,113060.0,0.1204]
[1755839342842,0.85132423,113070.0,113060.0,0.1204]
[1755839343645,0.85132423,113070.0,113060.0,0.1184]
[1755839345946,0.85132423,113070.0,113050.0,0.34852932]
[1755839346146,0.75477932,113060.0,113050.0,0.39725932]
[1755839346346,1.56737932,113060.0,113050.0,0.39725932]
[1755839347143,1.56737932,113060.0,113050.0,0.39825932]
[1755839347449,1.56737932,113060.0,113050.0,0.39925932]
[1755839348351,0.75477932,113060.0,113050.0,0.39925932]
[1755839349746,0.47592,113060.0,113050.0,0.39925932]
[1755839349949,0.39094,113060.0,113050.0,0.39925932]
[1755839350644,0.47592,113060.0,113050.0,0.39925932]
[1755839353646,0.47592,113060.0,113050.0,0.1204]
[1755839353647,0.75477932,113060.0,113050.0,0.1204]
[1755839353843,0.75477932,113060.0,113050.0,0.39925932]
[1755839355447,0.75477932,113060.0,113050.0,0.1204]
[1755839355654,0.75477932,113060.0,113050.0,0.30397932]
[1755839355854,1.03363864,113060.0,113050.0,0.30397932]
[1755839356152,1.03363864,113060.0,113050.0,0.33771932]
[1755839356653,1.03363864,113060.0,113050.0,0.38515932]
[1755839357151,0.75477932,113060.0,113050.0,0.39938932]
[1755839357451,1.03363864,113060.0,113050.0,0.39938932]
[1755839358151,1.03363864,113060.0,113050.0,0.12053]
[1755839358354,0.75509594,113060.0,113050.0,0.12053]
[1755839358551,0.47592,113060.0,113050.0,0.12053]
[1755839358753,0.75509594,113060.0,113050.0,0.12053]
[1755839361154,0.77594478,113060.0,113050.0,0.12053]
[1755839362653,0.77594478,113060.0,113050.0,0.07466]
[1755839362849,0.77594478,113060.0,113050.0,0.002]
[1755839363245,0.70651478,113060.0,113030.0,1.16166594]
[1755839363456,0.48028,113040.0,113030.0,1.16166594]
[1755839364259,0.48028,113040.0,113030.0,1.16466594]
[1755839364759,0.48028,113040.0,113030.0,1.16166594]
[1755839364951,0.48028,113040.0,113030.0,1.16466594]
[1755839365151,0.48028,113040.0,113030.0,1.16666594]
[1755839366554,0.48028,113040.0,113030.0,1.21265594]
[1755839367061,0.48028,113040.0,113030.0,0.93348]
[1755839367363,0.48028,113040.0,113030.0,1.21265594]
[1755839369564,0.48028,113040.0,113030.0,0.12096]
[1755839369766,0.75945594,113040.0,113030.0,0.12096]
[1755839369967,0.77749307,113040.0,113030.0,0.12096]
[1755839370260,0.77749307,113040.0,113030.0,0.07516]
[1755839370467,0.7983396,113040.0,113030.0,0.07516]
[1755839372266,0.7983396,113040.0,113030.0,0.10673]
[1755839372660,0.78030247,113040.0,113030.0,0.005]
[1755839373165,1.67027841,113040.0,113030.0,0.005]
[1755839373367,1.39110247,113040.0,113030.0,0.005]
[1755839373662,1.67027841,113040.0,113030.0,0.005]
[1755839373872,1.6892233,113040.0,113030.0,0.005]
[1755839374567,1.68882143,113040.0,113030.0,0.001]
[1755839375260,0.08052,113030.0,113020.0,0.05473]
[1755839375466,1.57197594,113030.0,113020.0,0.10173]
[1755839376060,0.11948,113020.0,113010.0,0.08439]
[1755839376366,0.75945594,113020.0,113010.0,0.07016]
[1755839376668,0.75945594,113020.0,113010.0,0.11596]
[1755839377061,0.75845594,113020.0,113010.0,0.11596]
[1755839377771,0.75745594,113020.0,113010.0,0.11896]
[1755839378557,0.75745594,113020.0,113010.0,0.11996]
[1755839379169,0.75745594,113020.0,113010.0,0.11796]
[1755839379364,0.47828,113020.0,113010.0,0.39713594]
[1755839380166,0.03275,113020.0,113010.0,0.39713594]
[1755839381463,0.05055724,113020.0,113010.0,0.39713594]
[1755839383271,0.05055724,113020.0,113010.0,0.11796]
[1755839383471,0.05055724,113020.0,113010.0,0.39713594]
[1755839384075,0.08332724,113020.0,113010.0,0.11796]
[1755839384365,0.05055724,113020.0,113010.0,0.39713594]
[1755839384771,0.03275,113020.0,113010.0,0.39713594]
[1755839387075,0.06553,113020.0,113010.0,0.39713594]
[1755839387974,0.03275,113020.0,113010.0,0.39713594]
[1755839388977,0.03275,113020.0,113010.0,0.11796]
[1755839389277,0.03275,113020.0,113010.0,0.39713594]
[1755839389578,0.11901,113020.0,113010.0,0.39713594]
[1755839389979,0.09505,113020.0,113010.0,0.39713594]
[1755839390575,0.04876,113020.0,113010.0,0.39713594]
[1755839391070,0.72582594,113030.0,113020.0,0.10257]
[1755839391270,0.72582594,113030.0,113020.0,0.11689]
[1755839391271,0.47943,113030.0,113020.0,0.11689]
[1755839391777,0.47943,113030.0,113020.0,0.39606594]
[1755839392170,0.47943,113030.0,113020.0,1.20862594]
[1755839392478,0.50022027,113030.0,113020.0,0.92945]
[1755839398380,0.7795185,113030.0,113020.0,1.20874823]
[1755839400181,0.7795185,113030.0,113020.0,0.39618823]
[1755839400383,0.7795185,113030.0,113020.0,0.11689]
[1755839400585,0.50022027,113030.0,113020.0,0.11689]
[1755839400784,0.7795185,113030.0,113020.0,0.11689]
[1755839400983,0.7795185,113030.0,113020.0,0.39618823]
[1755839401186,0.50022027,113030.0,113020.0,0.39618823]
[1755839401487,0.7795185,113030.0,113020.0,0.39618823]
[1755839402286,0.7795185,113030.0,113020.0,0.11689]
[1755839402490,0.7795185,113030.0,113020.0,0.39618823]
[1755839406804,0.7795185,113030.0,113020.0,0.11689]
[1755839406996,0.7795185,113030.0,113020.0,0.39618823]
[1755839409202,0.7795185,113030.0,113020.0,0.11689]
[1755839409402,0.7795185,113030.0,113020.0,0.39618823]
[1755839409797,0.50022027,113030.0,113020.0,0.39618823]
[1755839409998,0.7795185,113030.0,113020.0,0.39618823]
[1755839410602,0.7795185,113030.0,113020.0,0.11689]
[1755839410899,0.7795185,113030.0,113020.0,0.02107]
[1755839411104,0.7795185,113030.0,113020.0,0.27929823]
[1755839411297,0.7795185,113030.0,113010.0,1.16296823]
[1755839411497,0.50022027,113030.0,113020.0,0.10257]
[1755839411698,0.50022027,113030.0,113020.0,0.11689]
[1755839412408,0.02079027,113030.0,113020.0,0.22615511]
[1755839412702,0.05010027,113040.0,113030.0,0.205384]
[1755839412894,0.02755027,113040.0,113030.0,1.48792646]
[1755839413205,0.02755027,113040.0,113030.0,1.20862823]
[1755839413206,0.05010027,113040.0,113030.0,1.20862823]
[1755839413803,0.08288027,113040.0,113030.0,1.20862823]
[1755839414008,0.10114027,113040.0,113030.0,1.20862823]
[1755839414306,0.11565027,113040.0,113030.0,1.20853961]
[1755839415104,0.09767,113040.0,113030.0,1.20853961]
[1755839415701,0.05138,113040.0,113030.0,1.20853961]
[1755839415907,0.003,113040.0,113030.0,1.29703361]
[1755839416608,0.01796438,113050.0,113030.0,2.1562103]
[1755839416905,0.01796438,113050.0,113040.0,0.76379542]
[1755839417105,0.01796438,113050.0,113040.0,0.48458581]
[1755839417694,0.01896438,113050.0,113040.0,0.39609961]
[1755839418606,0.01896438,113050.0,113040.0,0.48458581]
[1755839419500,0.01896438,113050.0,113040.0,0.48558581]
[1755839420108,0.01796438,113050.0,113040.0,0.48558581]
[1755839420302,0.01796438,113050.0,113040.0,0.48658581]
[1755839427216,0.01796438,113050.0,113040.0,0.55661396]
[1755839430718,0.01796438,113050.0,113040.0,0.56558506]
[1755839431818,0.01796438,113050.0,113040.0,0.84479467]
[1755839432415,0.01796438,113050.0,113040.0,0.56558506]
[1755839432720,0.50968179,113070.0,113040.0,0.74255346]
[1755839432909,0.04654,113070.0,113060.0,0.39923961]
[1755839433218,0.43944829,113080.0,113070.0,0.12003]
[1755839433414,0.49494829,113080.0,113070.0,0.93207]
[1755839435413,0.46221829,113080.0,113070.0,1.21127961]
[1755839435613,0.49494829,113080.0,113070.0,1.21127961]
[1755839436919,0.49494829,113080.0,113070.0,0.93207]
[1755839437118,0.49494829,113080.0,113070.0,1.21127961]
[1755839441317,0.47723,113080.0,113070.0,1.23072601]
[1755839442822,0.47723,113080.0,113070.0,0.9515164]
[1755839443022,0.47723,113080.0,113070.0,1.23072601]
[1755839443223,0.4445,113080.0,113070.0,1.23072601]
[1755839443520,0.45446,113080.0,113070.0,1.23072601]
[1755839443727,0.39231,113080.0,113070.0,1.23072601]
[1755839443931,0.42504,113080.0,113070.0,1.23072601]
[1755839444224,0.47723,113080.0,113070.0,1.23072601]
[1755839444926,0.47723,113080.0,113070.0,0.9515164]
[1755839445220,0.75643961,113080.0,113070.0,0.9515164]
[1755839445425,0.47723,113080.0,113070.0,0.9515164]
[1755839445825,0.47723,113080.0,113070.0,0.9185064]
[1755839446124,0.47723,113080.0,113070.0,0.9515164]
[1755839446326,0.77672041,113080.0,113070.0,0.9185064]
[1755839446627,0.77672041,113080.0,113070.0,0.9515164]
[1755839447223,0.77672041,113080.0,113070.0,0.1394764]
[1755839452430,0.77672041,113080.0,113070.0,0.0511764]
[1755839452629,0.77672041,113080.0,113070.0,0.0291764]
[1755839452824,0.77672041,113080.0,113070.0,0.0519164]
[1755839453024,0.77672041,113080.0,113070.0,0.0755864]
[1755839453225,0.77672041,113080.0,113070.0,0.0519164]
[1755839453425,0.77672041,113080.0,113070.0,0.0421864]
[1755839453925,0.77672041,113080.0,113070.0,0.0194464]
[1755839455028,0.4975108,113080.0,113070.0,0.0421864]
[1755839455223,0.77672041,113080.0,113070.0,0.0421864]
[1755839455429,0.77672041,113080.0,113070.0,0.0752064]
[1755839455829,0.77672041,113080.0,113070.0,0.0905464]
[1755839456128,0.77672041,113080.0,113070.0,0.1235764]
[1755839456431,0.77672041,113080.0,113070.0,0.1371164]
[1755839456634,0.4975108,113080.0,113070.0,0.1371164]
[1755839457732,0.4975108,113080.0,113070.0,0.41632601]
[1755839459431,0.4975108,113080.0,113070.0,1.22820601]
[1755839460428,0.4975108,113080.0,113070.0,0.9489964]
[1755839461024,0.4975108,113080.0,113070.0,0.1371164]
[1755839461231,0.77672041,113080.0,113070.0,0.1040864]
[1755839461731,0.77672041,113080.0,113070.0,0.1371164]
[1755839462833,0.4975108,113080.0,113070.0,0.1371164]
[1755839463729,0.4969908,113080.0,113070.0,0.41632601]
[1755839467729,0.4420108,113080.0,113070.0,0.78479842]
[1755839468035,0.03234,113090.0,113080.0,0.11767]
[1755839468229,0.44956241,113100.0,113080.0,1.62694339]
[1755839468431,0.13654241,113100.0,113090.0,0.39687961]
[1755839470838,0.13654241,113100.0,113090.0,0.39787961]
[1755839473639,0.13654241,113100.0,113090.0,0.11867]
[1755839473830,0.13654241,113100.0,113090.0,0.39787961]
[1755839474035,0.13654241,113100.0,113090.0,1.21015961]
[1755839477140,0.13654241,113100.0,113090.0,1.21115961]
[1755839479043,0.13654241,113100.0,113090.0,1.21015961]
[1755839483445,0.02756241,113100.0,113090.0,1.29860681]
[1755839483943,0.02756241,113100.0,113090.0,1.21015961]
[1755839484152,0.08386241,113100.0,113090.0,1.21015961]
[1755839484641,0.04905241,113100.0,113090.0,1.21015961]
[1755839488846,0.01824241,113100.0,113090.0,1.29860681]
[1755839489251,0.01824241,113100.0,113090.0,1.59773059]
[1755839489644,0.01824241,113100.0,113090.0,1.31852098]
[1755839491147,0.06555144,113120.0,113100.0,0.156829]
[1755839491351,0.10688144,113120.0,113110.0,1.13758961]
[1755839491547,0.12306144,113120.0,113110.0,1.20597961]
[1755839491749,0.14768144,113120.0,113110.0,1.20597961]
[1755839492248,0.07951739,113120.0,113110.0,1.20597961]
[1755839492952,0.11432739,113120.0,113110.0,1.20597961]
[1755839493148,0.14759811,113120.0,113110.0,1.20597961]
[1755839496456,0.16776093,113120.0,113110.0,1.20597961]
[1755839496756,0.14759811,113120.0,113110.0,1.20597961]
[1755839497555,0.16776887,113120.0,113110.0,1.20597961]
[1755839498447,0.16776887,113120.0,113110.0,0.39433961]
[1755839499857,0.44697848,113120.0,113110.0,0.11513]
[1755839500355,0.16776887,113120.0,113110.0,0.11513]
[1755839502158,0.44697848,113120.0,113110.0,0.11513]
[1755839502461,0.16776887,113120.0,113110.0,0.11513]
[1755839502957,0.14759811,113120.0,113110.0,0.11513]
[1755839504563,0.12935072,113120.0,113110.0,0.11613]
[1755839505163,0.12935072,113120.0,113110.0,0.39533961]
[1755839505458,0.12935072,113120.0,113110.0,0.11613]
[1755839506154,0.12935072,113120.0,113110.0,0.11513]
[1755839512359,0.14950339,113120.0,113110.0,0.11513]
[1755839512759,0.12935072,113120.0,113110.0,0.11513]
[1755839512964,0.14950245,113120.0,113110.0,0.11513]
[1755839513466,0.42871399,113120.0,113110.0,0.08348]
[1755839513764,0.42871399,113120.0,113110.0,0.11736]
[1755839518567,0.11469438,113120.0,113110.0,0.39656961]
[1755839518865,0.14811438,113120.0,113110.0,0.39656961]
[1755839521570,0.14811438,113120.0,113110.0,0.11736]
[1755839521768,0.14811438,113120.0,113110.0,0.39656961]
[1755839522867,0.14811438,113120.0,113110.0,0.11736]
[1755839523862,0.14814818,113120.0,113110.0,0.11736]
[1755839524567,0.14814818,113120.0,113110.0,0.39656961]
[1755839527172,0.42735779,113120.0,113110.0,0.06988]
[1755839527469,0.42735779,113120.0,113110.0,0.11749]
[1755839532068,0.14814818,113120.0,113110.0,0.39669961]
[1755839533464,0.14814818,113120.0,113110.0,0.11749]
[1755839536576,0.42735779,113120.0,113110.0,0.11749]
[1755839538378,0.70593406,113120.0,113110.0,0.39638294]
[1755839538582,0.42704112,113120.0,113110.0,0.39638294]
[1755839542481,0.70593406,113120.0,113110.0,0.11749]
[1755839542680,0.70593406,113120.0,113110.0,0.39638294]
[1755839543872,0.70593406,113120.0,113110.0,0.06988]
[1755839544081,0.70593406,113120.0,113100.0,0.35160294]
[1755839544280,0.40016294,113110.0,113100.0,0.40012294]
[1755839544582,0.14145746,113110.0,113100.0,0.40012294]
[1755839544775,0.4203504,113110.0,113100.0,0.40012294]
[1755839546384,0.42040991,113110.0,113100.0,0.12223]
[1755839547383,0.42040991,113110.0,113100.0,0.12123]
[1755839548883,0.14145746,113110.0,113100.0,0.12123]
[1755839549182,0.42040991,113110.0,113100.0,0.12123]
[1755839549883,0.14145746,113110.0,113100.0,0.12123]
[1755839550183,0.42040991,113110.0,113100.0,0.12123]
[1755839550483,0.14145746,113110.0,113100.0,0.40018245]
[1755839550671,0.14145746,113110.0,113100.0,0.12123]
[1755839550877,0.14145746,113110.0,113100.0,0.40018245]
[1755839551077,0.09263746,113110.0,113100.0,0.40018245]
[1755839551580,0.06090746,113110.0,113100.0,1.4911749]
[1755839551880,0.02018746,113110.0,113100.0,1.4507349]
[1755839552073,0.02018746,113110.0,113100.0,1.17178245]
[1755839552273,0.07765818,113120.0,113100.0,1.17178245]
[1755839552482,0.10938818,113120.0,113110.0,0.35974245]
[1755839554885,0.11038818,113120.0,113110.0,0.35974245]
[1755839556285,0.11038818,113120.0,113110.0,0.08079]
[1755839556488,0.38934063,113120.0,113110.0,0.08079]
[1755839558689,0.11038818,113120.0,113110.0,0.35974245]
[1755839562082,0.09020072,113120.0,113110.0,0.35974245]
[1755839562289,0.11074163,113120.0,113110.0,0.35974245]
[1755839563291,0.11074163,113120.0,113110.0,0.08079]
[1755839563487,0.11074163,113120.0,113110.0,0.35974245]
[1755839566794,0.11074163,113120.0,113110.0,0.36174245]
[1755839567093,0.10974163,113120.0,113110.0,0.36474245]